Cogmind - Beta 9 @@@ ROGUE MODE // 2019.10.28 @ 14:02:18 Player: terics Result: Self-destructed Performance ------------- Evolutions (1) 500 Regions Visited (4) 800 Robots Destroyed (13) 65 Value Destroyed (341) 341 Prototype IDs (1) 20 Alien Tech Used (0) 0 Bonus (-39) -39 TOTAL SCORE: 1687 Bonus ------- Friendly Fire -39 Cogmind --------- Core Integrity 179/400 Matter 135/300 Energy 77/140 System Corruption 0% Temperature Cool (92) Location -9/Mines Parts ------- Power (1) Light Deuterium Engine Propulsion (4) Utility (2) High-capacity Storage Unit Weapon (2) Beamcaster Autogun Inventory (12) Ion Engine Improved Heat Sink Structural Scanner Small Laser Light Cannon Mining Laser Peak State ------------ Power Cooled Ion Engine Propulsion Compact Wheel Compact Wheel Compact Wheel Utility High-capacity Storage Unit Medium Armor Plating Weapon Assault Rifle Heavy Assault Rifle Inventory Ion Engine Light Deuterium Engine Improved Heat Sink Structural Scanner Integration Mediator Small Laser Particle Gun Beamcaster Autogun Light Cannon Mining Laser [Rating: 14] Favorites ----------- Power Cooled Ion Engine Engine Cooled Ion Engine Propulsion Compact Wheel Wheel Compact Wheel Utility Medium Storage Unit Device Integration Mediator Storage Medium Storage Unit Processor Improved Targeting Computer Protection Medium Armor Plating Weapon Light Cannon Energy Gun Small Laser Ballistic Gun Heavy Assault Rifle Ballistic Cannon Light Cannon Special Weapon Mining Laser Build | -11 -10 -10 -9 -9 ------- Run | Scr Mat Min Mat Min Slots Evolved 2 | . . . 2 . Power . | . . . . . Propulsion 2 | . . . 2 . Utility . | . . . . . Weapon . | . . . . . Parts Attached 28 | 6 3 . 11 8 Power 3 | 1 . . 1 1 Engine 3 | 1 . . 1 1 Core . | . . . . . Reactor . | . . . . . Propulsion 5 | 2 . . 3 . Treads . | . . . . . Leg . | . . . . . Wheel 5 | 2 . . 3 . Hover . | . . . . . Flight . | . . . . . Utility 7 | 1 2 . 3 1 Device 1 | . . . . 1 Storage 4 | 1 2 . 1 . Processor 1 | . . . 1 . Hackware . | . . . . . Protection 1 | . . . 1 . Artifact . | . . . . . Weapon 13 | 2 1 . 4 6 Energy Gun 7 | 2 . . 2 3 Energy Cannon . | . . . . . Ballistic Gun 3 | . . . 2 1 Ballistic Cannon 2 | . 1 . . 1 Launcher . | . . . . . Special Weapon 1 | . . . . 1 Impact Weapon . | . . . . . Slashing Weapon . | . . . . . Piercing Weapon . | . . . . . Special Melee Weapon . | . . . . . Unidentified Prototypes 1 | . . . 1 . Parts Lost 14 | . . . 5 9 Power 1 | . . . . 1 Propulsion 5 | . . . 2 3 Utility 3 | . . . 1 2 Weapon 5 | . . . 2 3 Highest Loss Streak 9 | . . . 3 9 Average Slot Usage (%) 89 | . 98 100 90 73 Engine 11 | . 14 14 11 9 Wheel 30 | . 28 28 35 22 Storage 17 | . 26 28 13 11 Processor 2 | . . . 5 . Protection 3 | . . . 2 8 Energy Gun 9 | . 15 14 8 2 Ballistic Gun 5 | . . . 4 17 Ballistic Cannon 8 | . 12 14 8 1 Naked Turns . | . . . . . Heaviest Build 52 | 10 19 19 52 52 Greatest Support 58 | 26 26 26 58 48 Greatest Overweight (x) 2 | 2 . . 1 1 Average Overweight (x) . | . . . . 1 Largest Inventory Capacity 12 | 6 8 8 12 12 Average Capacity 9 | 5 6 8 9 12 Most Carried 11 | 2 7 7 10 11 Average Carried 6 | 1 4 7 7 9 Final Capacity 12 | . . . . 12 Final Carried 6 | . . . . 6 Class Distribution -------------------- 100% | Mutant Dominant Class ---------------- Mutant | -10/Materials Mutant | -10/Mines Mutant | -9/Materials Mutant | -9/Mines Resources | -11 -10 -10 -9 -9 ----------- Run | Scr Mat Min Mat Min Matter Collected 536 | 194 . 50 270 22 Remotely . | . . . . . Salvage Created 367 | . . 50 268 49 Parts 30 | . . 10 17 3 Haulers Intercepted . | . . . . . Recyclers Shooed . | . . . . . Parts Field Recycled . | . . . . . Retrieved Matter . | . . . . . Parts Self-Destructed . | . . . . . Prevented . | . . . . . Kills | -11 -10 -10 -9 -9 ------- Run | Scr Mat Min Mat Min Combat Hostiles Destroyed 12 | . . 5 6 1 Guns 5 | . . 1 3 1 Cannons 7 | . . 4 3 . Classes Destroyed 5 | . . 1 4 . Tunneler 1 | . . . 1 . Swarmer 5 | . . 5 . . Grunt 3 | . . . 2 1 Duelist 1 | . . . 1 . Sentry 3 | . . . 3 . Best Kill Streak 3 | . . 3 2 1 Combat Bots Only 3 | . . 3 2 1 Max Kills in Single Turn 1 | . . 1 1 1 Gunslinging . | . . . . . Exploded . | . . . . . Melee . | . . . . . Uniques/NPCs Destroyed . | . . . . . Combat | -11 -10 -10 -9 -9 -------- Run | Scr Mat Min Mat Min Damage Taken 1329 | . . 109 459 761 Core 252 | . . 31 57 164 Absorbed by Shields . | . . . . . Core Remaining (%) 93 | 100 . 87 . . Volleys Fired 65 | . 2 9 23 31 Largest 2 | . 2 2 2 2 Hottest 98 | . 75 75 91 98 Shots Fired 123 | . 4 18 46 55 Gun 80 | . 2 9 24 45 Cannon 43 | . 2 9 22 10 Launcher . | . . . . . Special . | . . . . . Kinetic 84 | . 2 9 28 45 Thermal 39 | . 2 9 18 10 Explosive . | . . . . . Electromagnetic . | . . . . . Robot Hit Streak 13 | . 1 5 13 13 Robot Miss Streak 4 | . 2 4 4 2 Penetration Max . | . . . . . Secondary Targets . | . . . . . Shots Hit Robots 82 | . 1 10 33 38 Core Hits 23 | . 1 5 11 6 Critical Hits 2 | . . 1 . 1 Critical Kills 1 | . . 1 . . Critical Parts Destroyed . | . . . . . Melee Attacks . | . . . . . Impact . | . . . . . Slashing . | . . . . . Piercing . | . . . . . Sneak Attacks . | . . . . . Combat Hostiles . | . . . . . Follow-up Attacks . | . . . . . Damage Inflicted 1157 | . 21 121 424 591 Guns 769 | . 21 31 245 472 Cannons 382 | . . 88 175 119 Explosions . | . . . . . Melee . | . . . . . Ramming 6 | . . 2 4 . Kinetic 823 | . . 88 252 483 Thermal 328 | . 21 31 168 108 Explosive . | . . . . . Electromagnetic . | . . . . . Impact . | . . . . . Slashing . | . . . . . Piercing . | . . . . . Highest Corruption . | . . . . . Average Corruption . | . . . . . Corruption Purged . | . . . . . Overload Shots . | . . . . . Overflow Damage 10 | . . 10 . . Projectiles 10 | . . 10 . . Explosions . | . . . . . Melee . | . . . . . Knockbacks 2 | . . 1 . 1 Impact . | . . . . . Kinetic 2 | . . 1 . 1 Secondary . | . . . . . Self-Inflicted Damage 3 | . . 1 2 . Shots . | . . . . . Rammed 3 | . . 1 2 . Targets Rammed 3 | . . 1 2 . Kicked . | . . . . . Crushed . | . . . . . Highest Temperature 114 | . 15 90 63 114 Average Temperature 34 | . 10 38 24 53 Received Heat Transfer 156 | . . . 144 12 Siege Activations . | . . . . . Robots Corrupted . | . . . . . Combat Hostiles . | . . . . . Parts Fried . | . . . . . Impact Corruptions . | . . . . . Robots Melted . | . . . . . Combat Hostiles . | . . . . . Parts Melted 1 | . . 1 . . Heat Transferred 636 | . 50 75 457 54 Parts Sabotaged . | . . . . . Parts Stolen . | . . . . . Parts Stripped . | . . . . . Power Chain Reactions . | . . . . . Missiles Intercepted . | . . . . . Alert | -11 -10 -10 -9 -9 ------- Run | Scr Mat Min Mat Min Peak Influence 275 | . 50 139 275 50 Average Influence 97 | . 26 90 175 17 Maximum Alert Level 1 | . . . 1 . Low Security (%) 77 | . . . . . Level 1 22 | . . . . . Level 2 . | . . . . . Level 3 . | . . . . . Level 4 . | . . . . . Level 5 . | . . . . . High Security . | . . . . . Max Security . | . . . . . Squads Dispatched 1 | . . . 1 . Investigation . | . . . . . Extermination . | . . . . . Reinforcement 1 | . . . 1 . Assault . | . . . . . Garrison . | . . . . . Intercept . | . . . . . Construction Impeded . | . . . . . Haulers Reinforced . | . . . . . Stealth | -11 -10 -10 -9 -9 --------- Run | Scr Mat Min Mat Min Distress Signals 2 | . . . 2 . Communications Jammed . | . . . . . Distress Signals . | . . . . . Times Spotted 20 | . 4 5 8 3 Peak Tracking Total 3 | . 3 3 3 2 Tactical Retreats 1 | . . 1 . . Traps | -11 -10 -10 -9 -9 ------- Run | Scr Mat Min Mat Min Traps Triggered . | . . . . . Indirectly . | . . . . . Trap Hack Attempts . | . . . . . Triggered . | . . . . . Disarmed . | . . . . . Reprogrammed . | . . . . . Reused . | . . . . . Traps Extracted . | . . . . . Installed . | . . . . . Triggered . | . . . . . Machines | -11 -10 -10 -9 -9 ---------- Run | Scr Mat Min Mat Min Machines Disabled . | . . . . . Max in Single Turn . | . . . . . Machines Sabotaged . | . . . . . Garrisons Compromised . | . . . . . Overloaded Fab Kills . | . . . . . Fab Network Shutdowns . | . . . . . Hacking | -11 -10 -10 -9 -9 --------- Run | Scr Mat Min Mat Min Machines Accessed 7 | . 3 . 4 . Terminals 7 | . 3 . 4 . Fabricators . | . . . . . Repair Stations . | . . . . . Recycling Units . | . . . . . Scanalyzers . | . . . . . Garrison Access . | . . . . . Total Hacks 16 | . 5 . 11 . Successful 6 | . 1 . 5 . Failed 10 | . 4 . 6 . Catastrophic 2 | . 1 . 1 . Database Lockouts . | . . . . . Manual . | . . . . . Terminals 16 | . 5 . 11 . Fabricators . | . . . . . Repair Stations . | . . . . . Recycling Units . | . . . . . Scanalyzers . | . . . . . Garrison Access . | . . . . . Terminal Hacks 6 | . 1 . 5 . Alert Level 2 | . . . 2 . Locate Traps 1 | . . . 1 . Dispatch Records 1 | . . . 1 . Surveillance Status 1 | . . . 1 . Investigation Status 1 | . 1 . . . Fabricator Hacks . | . . . . . Repair Station Hacks . | . . . . . Recycling Unit Hacks . | . . . . . Scanalyzer . | . . . . . Garrison Access Hacks . | . . . . . Unauthorized Hacks . | . . . . . Terminals . | . . . . . Fabricators . | . . . . . Repair Stations . | . . . . . Recycling Units . | . . . . . Scanalyzers . | . . . . . Garrison Access . | . . . . . Data Cores Recovered . | . . . . . Used . | . . . . . Hacking Detections 7 | . 3 . 4 . Full Trace Events . | . . . . . Feedback Events . | . . . . . Feedback Blocked . | . . . . . Robot Schematics Acquired . | . . . . . Robots Built . | . . . . . Matter . | . . . . . Time . | . . . . . Total Robot Build Rating . | . . . . . Part Schematics Acquired . | . . . . . Parts Built . | . . . . . Matter . | . . . . . Time . | . . . . . Total Part Build Rating . | . . . . . Parts Repaired . | . . . . . Time . | . . . . . Parts Recycled . | . . . . . Recycled Matter . | . . . . . Retrieved Matter . | . . . . . Retrieved Components . | . . . . . Parts Scanalyzed . | . . . . . Part Schematics Acquired . | . . . . . Parts Damaged . | . . . . . Bothacking | -11 -10 -10 -9 -9 ------------ Run | Scr Mat Min Mat Min Used RIF Installer . | . . . . . Robots Hacked . | . . . . . Non-combat . | . . . . . Combat . | . . . . . Robot Hacks Applied . | . . . . . Relay Couplers Released . | . . . . . Robots Rewired . | . . . . . Allies Hacked . | . . . . . Hacks Repelled . | . . . . . Allies | -11 -10 -10 -9 -9 -------- Run | Scr Mat Min Mat Min Total Allies 2 | . . . . 2 Largest Group 2 | . . . . 2 Highest-Rated Group 42 | . . . . 42 Highest-Rated Ally 31 | . . . . 31 Total Orders . | . . . . . Ally Attacks 3 | . . . . 3 Total Damage 4 | . . . . 4 Kills . | . . . . . Allies Corrupted . | . . . . . Allies Melted . | . . . . . Intel | -11 -10 -10 -9 -9 ------- Run | Scr Mat Min Mat Min Robot Analysis Total . | . . . . . Derelict Logs Recovered 1 | . . 1 . . Drone Launches . | . . . . . Drone Recoveries . | . . . . . Exploration | -11 -10 -10 -9 -9 ------------- Run | Scr Mat Min Mat Min Turns Passed 955 | 60 159 125 424 187 Spaces Moved 673 | 55 149 106 299 64 Core 17 | 17 . . . . Treads . | . . . . . Legs . | . . . . . Wheels 656 | 38 149 106 299 64 Hover . | . . . . . Flight . | . . . . . Fastest Speed 50 | 50 90 90 90 110 Average Speed 94 | 81 90 90 98 110 Slowest Speed 150 | 150 90 90 110 110 Overloaded Moves . | . . . . . Propulsion Burnouts . | . . . . . Robots Hopped . | . . . . . Cave-ins Triggered . | . . . . . Exploration Rate (%) 27 | 4 28 46 28 29 Regions Visited 4 Branch Regions 2 Pre-discovered Areas 1 | . . 1 . . Known Exits Taken . | . . . . . Unknown Exits Taken 4 | 1 1 1 1 . Scrap Searched . | . . . . . Spaces Dug . | . . . . . Terrain Destroyed . | . . . . . Melee . | . . . . . Projectile . | . . . . . AOE . | . . . . . Actions | -11 -10 -10 -9 -9 --------- Run | Scr Mat Min Mat Min Total 861 | 67 169 117 384 124 Wait 70 | 5 10 2 34 19 Move 669 | 54 148 105 298 64 Hop . | . . . . . Pick Up 17 | 2 4 . 9 2 Fast Attach 12 | 6 2 . 4 . Attach 10 | . . . 5 5 Detach 2 | . 1 . 1 . Swap 6 | . 1 . 2 3 Drop 7 | . 1 . 6 . Fire 65 | . 2 9 23 31 Melee . | . . . . . Ram 3 | . . 1 2 . Kick . | . . . . . Crush . | . . . . . Escape Stasis . | . . . . . Rewire . | . . . . . Trap . | . . . . . Miscellaneous . | . . . . . Route ------- -11/Scrapyard -10/Materials -10/Mines -9/Materials (discovered 2 exits: [*Min] / [*Sto]) -9/Mines History --------- Turn | Location | Event 10 | -11/Scrapyard | Discovered new exit (range 16) 61 | -11/Scrapyard | Entered Materials 193 | -10/Materials | Discovered new exit (range 14) 220 | -10/Materials | Entered Mines 314 | -10/Mines | Build established: Mutant 324 | -10/Mines | Discovered new exit (range 10) 340 | -10/Mines | Learned location of Zion (-7) 345 | -10/Mines | Entered Materials 345 | -9/Materials | Evolved 2 slots: Propulsion x2 379 | -9/Materials | Discovered new exit (range 14) 698 | -9/Materials | Lost 3 parts (1n1u1w) 760 | -9/Materials | Discovered new exit (range 9) 761 | -9/Materials | Met 8R-AWN 769 | -9/Materials | Entered Mines 771 | -9/Mines | Followed 8R-AWN into the Mines 782 | -9/Mines | Assembled infested the area 787 | -9/Mines | Assisted by a Guerilla fighting off Assembled 835 | -9/Mines | Attacked by 8R-AWN 942 | -9/Mines | Core integrity fell below 50% 956 | -9/Mines | Self-destructed Last Messages --------------- Penetrated by HV Slug. HV Slug penetrates Wall. U-05 Engineer builds a Wall. Penetrated by HV Slug. HV Slug penetrates Wall. Penetrated by HV Slug. HV Slug penetrates Wall. HV Slug penetrates Earth. Penetrated by HV Slug. Com. Wheel destroyed. HV Slug penetrates Wall. Penetrated by HV Slug. HV Slug penetrates Wall. Penetrated by HV Slug. HV Slug penetrates Wall. Penetrated by HV Slug. HV Slug penetrates Wall. Penetrated by HV Slug. Integration Mediator destroyed. HV Slug penetrates Wall. Map ----- +----------------------------------------------------+ | ??????????????????????? ?????????????????????????? | | #?????????????????????? ?????????????????????????? | | #?????????????????????# #????????????????????????? | | #?????????????????????# #????????????????????????? | | ##???#####????????????# #????????????????????????? | | ##??# ####????####?# #????????????????????????? | | #??# ##??## ### ###??????????????????????? | | #??# #### ## ???????????????????????? | | #### ## ## #????????????????????????? | | #????????????????????????? | | """ #????????????????????????? | | ###### """ ### #????????????????????????? | | #????# """ ##?# ##############???????????? | | #????# #??# #???????????? | | #????# #??# ############ #???????????? | | #????# ## #?# #??????????# #???????????? | | ?????## ######## ??????????# #???????????? | | ??????####??????### ??????????# #???#???????? | | ???????????????????# ??????????# #?? #???????? | | ????????????????????# #??????????#*#? #???????? | | ????????????????????# ##??????????#!## #???????? | | ????????????????????## #???????????#%#" #???????? | | ???????????????????#####???????????#="#??????????? | | ???????????????????# ;###?????####%##??????????? | | ???????????????????# ;;%|####?## =! #???????????? | | ?????????????????????##!=@ ;;### *|=#???????????? | | ???????????????# ## ### !%#%#??????????? | | ??????????? g r "## #??????????? | | ??????????# ###?##??????????? | | ??????????? ######r ;#??????????????? | | ???????????# #?????#% #??????????????? | | ????????????#### #?????#!*= #??????????????? | | ???????????????## #????? #??????????????? | | ????????????????#####????? #??????????????? | | ????????????????????????? ## ##??????????????? | | ???????????????????????????## ##???????????????? | | ????????????????????????????#####????????????????? | | ?????????????????????????????????????????????????? | | ?????????????????????????????????????????????????? | | ?????????????????????????????????????????????????? | | ?????????????????????????????????????????????????? | | ?????????????????????????????????????????????????? | | ?????????????????????????????????????????????????? | | ?????????????????????????????????????????????????? | | ?????????????????????????????????????????????????? | | ?????????????????????????????????????????????????? | | ?????????????????????????????????????????????????? | | ?????????????????????????????????????????????????? | | ?????????????????????????????????????????????????? | | ?????????????????????????????????????????????????? | +----------------------------------------------------+ Best States ------------- Heat Dissipation 28 Energy Generation 14 Energy Capacity 280 Matter Stores 300 Matter Capacity 500 Sight Range 16 Terrain Scan Density 10 Armor Coverage 225 Evasion (%) 50 Targeting Accuracy 6 Item Schematics ----------------- None Robot Schematics ------------------ None Fabricated ------------ Nothing Alien Tech Used ----------------- None Achievements -------------- None Challenges ------------ None Game ------ Seed AbsorptionLightpackMantle Manual? 0 Play Time 00:23:23 Cumulative 9.3 hours Start 2019.10.28 @ 13:37:19 End 2019.10.28 @ 14:02:18 Sessions 1 Manual Loads 0 Difficulty Rogue Special Mode None Game No. 27 Rogue 27 Adventurer 0 Explorer 0 Win Type - Total 0 Types 0/0/0/0/0/0/0 Lore% 17 Gallery% 19 Achievement% 12 Wizard Run 0 Options --------- ASCII 0 Keyboard 0 Movement Numpad Keybinds 0 Fullscreen 1 Font 18/SmallcapsGlow Map View 76x50 Tactical HUD 0 Map Filters NONE Filters NONE Steam 1 RUN: aee42900-f254-4741-943e-2bf77f27e262